bitfinex/quotes_ETHUSD_20250422
["timestamp","ask_amount","ask_price","bid_price","bid_amount"]
[1745314089914,12.2749778,1629.4,1629.0,6.9277319]
[1745314090099,6.13763477,1629.3,1629.0,0.789]
[1745314091315,12.27574313,1629.3,1629.0,0.789]
[1745314091521,6.13802608,1629.2,1629.0,0.789]
[1745314092582,12.2762925,1629.2,1629.0,0.789]
[1745314092783,6.1383586,1629.1,1628.7,16.49273273]
[1745314092984,6.13897518,1629.0,1628.8,0.7645]
[1745314093925,6.13897518,1629.0,1628.7,6.538]
[1745314094125,6.1396527,1628.8,1628.6,0.7645]
[1745314094330,6.13925511,1628.9,1628.6,0.82589414]
[1745314094724,6.13895406,1629.0,1628.6,0.82589414]
[1745314095039,6.13895406,1629.0,1628.6,6.96585497]
[1745314095244,6.13923575,1628.9,1628.6,0.82589414]
[1745314095416,6.13892016,1629.0,1628.6,6.96600519]
[1745314095612,6.93033643,1629.1,1628.7,6.13964776]
[1745314095613,6.13855661,1629.1,1628.7,6.13964776]
[1745314096041,12.27718638,1629.1,1628.7,6.13964776]
[1745314096459,6.13879288,1629.0,1628.6,13.044554]
[1745314096751,6.13842455,1629.1,1628.8,6.90387065]
[1745314097049,6.138376,1629.1,1628.8,0.7645]
[1745314097414,6.13820925,1629.2,1628.8,6.96536728]
[1745314097618,12.27568933,1629.3,1628.9,6.13907892]
[1745314097919,12.27568933,1629.3,1628.8,6.96536728]
[1745314097920,6.13814843,1629.2,1628.8,6.90374061]
[1745314098116,6.13772148,1629.3,1628.9,6.13895516]
[1745314098317,12.2755963,1629.3,1628.9,6.13895516]
[1745314098540,6.13772148,1629.3,1628.9,6.13895516]
[1745314098739,6.13819662,1629.2,1628.8,0.7645]
[1745314098944,6.13848956,1629.1,1628.8,0.7645]
[1745314099646,6.13893639,1629.0,1628.8,0.7645]
[1745314100021,6.13857148,1629.1,1628.8,0.7645]
[1745314100526,6.13878036,1629.0,1628.8,0.7645]
[1745314100726,12.27728224,1629.1,1628.8,0.7645]
[1745314100957,6.13857148,1629.1,1628.8,0.7645]
[1745314101169,12.2773008,1629.1,1628.8,0.7645]
[1745314101756,6.13857148,1629.1,1628.8,0.7645]
[1745314102074,12.27725367,1629.1,1628.8,0.7645]
[1745314102581,6.13857148,1629.1,1628.8,0.7645]
[1745314103142,12.27721642,1629.1,1628.8,0.7645]
[1745314103343,6.13857148,1629.1,1628.8,0.7645]
[1745314103579,12.27725457,1629.1,1628.8,0.7645]
[1745314103784,6.13873632,1629.0,1628.8,0.7645]
[1745314104286,6.13857148,1629.1,1628.8,0.7645]
[1745314104578,12.27728145,1629.1,1628.8,0.7645]
[1745314104956,6.13857148,1629.1,1628.8,0.7645]
[1745314105483,12.27720904,1629.1,1628.8,0.7645]
[1745314105675,12.27720148,1629.1,1628.8,0.7645]
[1745314106181,6.13894845,1629.0,1628.8,0.7645]
[1745314106341,6.92942848,1629.3,1628.6,0.7513]
[1745314106546,6.13967784,1628.8,1628.6,0.7513]
[1745314106782,12.27859167,1628.9,1628.6,0.7513]
[1745314106958,6.13952516,1628.8,1628.6,0.7513]
[1745314107359,12.27868326,1628.9,1628.6,0.7513]
[1745314107567,6.13921039,1628.9,1628.6,0.7513]
[1745314108375,6.13921039,1628.9,1628.6,6.89150924]
[1745314108583,0.8066,1628.9,1628.5,0.45637815]
[1745314108881,6.13989793,1628.7,1628.4,13.22003089]
[1745314109259,6.13989793,1628.7,1628.4,0.7513]
[1745314109460,6.13971809,1628.8,1628.4,6.95358896]
[1745314109672,6.14004778,1628.7,1628.4,0.81270187]
[1745314109972,6.14031309,1628.6,1628.4,0.7513]
[1745314110477,6.14004778,1628.7,1628.4,0.81270225]
[1745314110846,6.14004778,1628.7,1628.4,0.7513]
[1745314111144,6.14004778,1628.7,1628.4,1.20066894]
[1745314111549,6.14005999,1628.7,1628.4,1.20066894]
[1745314111780,12.28021484,1628.7,1628.4,1.20066894]
[1745314112703,6.14041778,1628.6,1627.9,20.9683]
[1745314112856,6.14041778,1628.6,1628.0,6.14250013]
[1745314112857,6.14160548,1628.3,1628.0,6.14250013]
[1745314113201,6.14160548,1628.3,1627.9,27.11092163]
[1745314113350,0.8066,1628.6,1628.2,6.1414451]
[1745314113685,6.14049015,1628.6,1628.3,0.7513]
[1745314114050,13.08606396,1628.8,1628.3,6.95390343]
[1745314114249,6.14002502,1628.7,1628.3,6.89245783]
[1745314114884,6.94621267,1628.8,1628.4,6.20205886]
[1745314115056,6.14091594,1628.5,1628.1,6.89336223]
[1745314115383,6.14051903,1628.6,1628.2,6.14162758]
[1745314115556,6.14125954,1628.4,1628.1,0.7513]
[1745314115857,6.14076468,1628.5,1628.1,6.89329864]
[1745314116255,6.14116472,1628.4,1628.1,0.7513]
[1745314116682,6.14084636,1628.5,1628.1,0.7513]
[1745314116871,6.14100387,1628.4,1628.1,0.7513]
[1745314117072,6.14151505,1628.3,1627.9,40.03476574]
[1745314117382,6.14076767,1628.5,1628.1,6.14212091]
[1745314117586,12.28172191,1628.5,1628.1,6.14212091]
[1745314117775,6.14138744,1628.3,1628.0,6.14232064]
[1745314117955,6.14104633,1628.4,1628.0,6.14232064]
[1745314118484,6.14104633,1628.4,1628.0,12.28456988]
[1745314118699,6.1403961,1628.6,1628.2,6.1414917]
[1745314119185,6.14076625,1628.5,1628.1,6.89324466]
[1745314119784,6.14076625,1628.5,1628.1,13.03517071]
[1745314120095,6.14076625,1628.5,1628.1,6.89322605]
[1745314120454,12.28168818,1628.5,1628.1,6.89322605]
[1745314120654,6.14113082,1628.4,1628.1,0.7513]
[1745314120890,6.14076625,1628.5,1628.1,13.09662603]
[1745314121088,6.14076625,1628.5,1628.1,6.89316673]
[1745314121595,6.1404213,1628.6,1628.2,6.14151754]
[1745314122169,6.1404213,1628.6,1628.2,12.28300552]
[1745314122362,6.14028871,1628.6,1628.2,6.14149511]
[1745314122961,6.14077096,1628.5,1628.1,13.22320584]
[1745314123161,6.14077096,1628.5,1628.1,19.36510792]
[1745314123507,6.14038521,1628.6,1628.2,6.14166099]
[1745314123661,6.14038521,1628.6,1628.2,6.1415087]
[1745314123855,6.14038521,1628.6,1628.2,12.28300458]
[1745314124059,6.14038521,1628.6,1628.2,6.14149588]
[1745314124284,12.28089468,1628.6,1628.2,6.14149588]
[1745314125295,1.22808947,1628.6,1628.1,0.7513]
[1745314125494,6.14148241,1628.3,1628.1,0.7513]
[1745314127500,6.14148241,1628.3,1627.9,26.81174969]
[1745314128098,6.14141045,1628.3,1628.0,6.14230929]
[1745314128601,6.91747892,1628.4,1628.0,6.14230929]
[1745314128806,6.14117892,1628.4,1628.0,6.14230929]
[1745314128967,6.91667656,1628.6,1628.2,6.14164296]
[1745314129168,6.14037656,1628.6,1628.2,6.14164296]
[1745314130598,12.28096418,1628.6,1628.2,6.14164296]
[1745314130766,12.28098524,1628.6,1628.2,6.14164296]
[1745314130971,6.14068711,1628.5,1628.2,6.14164296]
[1745314131791,6.14037656,1628.6,1628.2,6.14149796]
[1745314132719,12.28097332,1628.6,1628.2,6.14149796]
[1745314133431,12.28093576,1628.6,1628.2,6.14149796]
[1745314133928,6.1406336,1628.5,1628.2,6.14149796]
[1745314134131,6.14047522,1628.6,1628.1,10.72569617]
[1745314134275,6.14047522,1628.6,1628.2,6.14150999]
[1745314135980,6.1407769,1628.5,1628.1,10.72563218]
[1745314136183,6.1407769,1628.5,1628.2,6.14163128]
[1745314136812,6.14037473,1628.6,1628.2,6.14149176]
[1745314137025,12.28088862,1628.6,1628.2,6.14149176]
[1745314137310,6.14037473,1628.6,1628.2,6.14149176]
[1745314137469,6.14037473,1628.6,1628.2,12.28304356]
[1745314137665,12.28092235,1628.6,1628.2,6.14149176]
[1745314137882,6.14037473,1628.6,1628.2,6.14149176]
[1745314138503,6.14037473,1628.6,1628.3,6.14132723]
[1745314138717,6.13996929,1628.7,1628.3,9.9117142]
[1745314139622,0.7763,1628.8,1628.5,6.14050696]
[1745314139790,0.8166,1629.2,1628.7,9.91013382]
[1745314139989,6.95464315,1629.2,1628.7,9.91013382]
[1745314140186,0.8166,1629.0,1628.2,0.8113]
[1745314140391,6.14121234,1628.4,1628.2,0.8113]
[1745314140592,6.14121234,1628.4,1628.0,10.72429337]
[1745314140818,6.14166603,1628.3,1628.0,0.8113]
[1745314141094,6.14175674,1628.2,1627.9,0.45803633]
[1745314141412,6.14175674,1628.2,1627.8,11.33803383]
[1745314141724,6.14166603,1628.3,1627.9,6.14288073]
[1745314142250,12.28339104,1628.3,1627.9,6.14288073]
[1745314142846,6.1419794,1628.2,1627.8,1.27182066]
[1745314143054,6.14268075,1628.0,1627.8,0.46052066]
[1745314143254,6.14288915,1627.9,1627.6,0.8113]
[1745314143547,6.14268075,1628.0,1627.6,0.8113]
[1745314143757,6.14300549,1627.9,1627.6,0.8113]
[1745314144828,6.14300549,1627.9,1627.6,1.26498376]
[1745314145037,6.14250614,1628.0,1627.4,4.0740533]
[1745314145239,6.14305328,1627.9,1627.4,11.02980486]
[1745314145441,6.14305328,1627.9,1627.5,6.14421324]
[1745314145649,0.8166,1627.8,1627.5,6.14421324]
[1745314145812,0.8166,1627.8,1627.4,11.02991724]
[1745314145813,6.9598784,1627.8,1627.4,11.02991724]
[1745314146144,6.95929968,1628.0,1627.6,6.14370501]
[1745314146319,6.95929968,1628.0,1627.6,9.91425867]
[1745314146642,6.95929968,1628.0,1627.6,3.77055366]
[1745314146836,6.14294631,1627.9,1627.5,6.14417728]
[1745314147144,6.14338347,1627.8,1627.4,10.72645379]
[1745314147811,6.14338347,1627.8,1627.4,16.87098718]
[1745314148210,6.14338347,1627.8,1627.4,10.72638705]
[1745314148745,6.14338347,1627.8,1627.4,16.87093444]
[1745314149043,6.95928624,1628.0,1627.6,9.9142581]
[1745314149211,0.8166,1628.0,1627.6,9.9142581]
[1745314149530,0.8166,1628.0,1627.7,6.14351195]
[1745314149706,6.95914019,1628.0,1627.6,9.9142581]
[1745314151246,6.95914019,1628.0,1627.6,16.05801575]
[1745314151414,6.95914019,1628.0,1627.7,6.14363278]
[1745314151614,0.8166,1628.0,1627.7,6.14363278]
[1745314152744,13.01716466,1628.2,1627.8,9.91346878]
[1745314153053,6.93716466,1628.2,1627.8,6.14291512]
[1745314153349,0.7954,1628.2,1627.9,6.14271341]
[1745314153717,6.14150222,1628.3,1628.0,6.14249926]
[1745314153917,6.14150222,1628.3,1627.9,6.14266267]
[1745314154451,12.28318924,1628.3,1627.9,6.14266267]
[1745314154846,12.28319051,1628.3,1627.9,6.14266267]
[1745314155053,6.14176927,1628.2,1627.8,6.14308193]
[1745314155221,6.14154958,1628.3,1627.9,6.14283385]
[1745314155543,6.14175981,1628.2,1627.9,6.14283385]
[1745314155730,6.14175981,1628.2,1627.8,6.14307971]
[1745314156551,6.14175981,1628.2,1627.8,6.143013]
[1745314156756,12.28326544,1628.3,1627.9,6.14273613]
[1745314157454,6.14177652,1628.2,1627.8,12.28603037]
[1745314157751,6.141595,1628.3,1627.9,6.14286476]
[1745314158649,6.14150668,1628.3,1627.9,6.14286476]
[1745314159454,12.2831467,1628.3,1627.9,6.14286476]
[1745314159748,6.14150668,1628.3,1627.9,12.28550494]
[1745314159955,6.14150668,1628.3,1627.8,6.1430298]
[1745314160154,6.14150668,1628.3,1627.9,6.14284371]
[1745314160457,6.14187501,1628.2,1627.9,6.14284371]
[1745314160779,6.14150668,1628.3,1627.9,6.14284371]
[1745314160919,6.14150668,1628.3,1627.9,6.14262432]
[1745314161120,6.93655137,1628.4,1627.8,6.14326084]
[1745314161327,6.93655137,1628.4,1628.0,6.1423688]
[1745314161559,0.7954,1628.4,1628.1,6.14189422]
[1745314161748,0.7954,1628.4,1628.0,6.89325194]
[1745314161749,6.93653142,1628.4,1628.0,13.03549681]
[1745314161935,6.93653142,1628.4,1628.0,13.48591644]
[1745314162119,6.14113142,1628.4,1628.1,6.14212479]
[1745314162555,6.14082871,1628.5,1628.1,12.28407777]
[1745314162764,12.2817629,1628.5,1628.1,6.14195298]
[1745314162924,6.14103563,1628.4,1628.1,6.14195298]
[1745314163658,12.28176981,1628.5,1628.1,6.14195298]
[1745314163860,6.14082871,1628.5,1628.1,6.14195298]
[1745314164522,6.14149669,1628.3,1628.0,1.20131963]
[1745314164763,6.14113214,1628.4,1628.0,1.20131963]
[1745314164764,6.14113214,1628.4,1628.0,7.34375811]
[1745314164941,6.14140038,1628.3,1628.0,7.34375811]
[1745314165140,6.14113214,1628.4,1628.0,7.34358265]
[1745314165772,6.14113214,1628.4,1628.1,6.1421116]
[1745314167154,6.14113214,1628.4,1628.0,7.34358265]
[1745314167875,6.14113214,1628.4,1628.0,13.54725295]
[1745314168032,6.14113214,1628.4,1628.0,13.48583245]
[1745314168233,6.14078282,1628.5,1628.1,6.14212352]
[1745314169356,12.28171427,1628.5,1628.1,6.14212352]
[1745314169556,6.14078282,1628.5,1628.1,6.14212352]
[1745314169759,12.28168665,1628.5,1628.1,6.14212352]
[1745314169970,6.14078282,1628.5,1628.1,6.14212352]
[1745314170476,12.28171803,1628.5,1628.1,6.14212352]
[1745314171189,6.14103445,1628.4,1628.1,6.14212352]
[1745314172575,6.94438507,1628.6,1628.2,6.14146317]
[1745314172743,6.94438507,1628.6,1628.2,12.28296654]
[1745314173074,6.13965921,1628.8,1628.4,6.14070338]
[1745314173272,6.13965921,1628.8,1628.4,12.28150252]
[1745314173586,6.93345012,1629.0,1628.5,3.77055366]
[1745314173774,6.13912558,1628.9,1628.5,3.77055366]
[1745314174153,6.1395557,1628.8,1628.5,3.77055366]
[1745314174851,6.1395557,1628.8,1628.3,13.11151267]
[1745314174852,6.93462526,1628.7,1628.3,13.11151267]
[1745314175184,0.7946,1628.7,1628.4,6.14096591]
[1745314175349,6.1397165,1628.8,1628.4,6.14096591]
[1745314175555,6.1397165,1628.8,1628.4,6.14079595]
[1745314177191,6.1397165,1628.8,1628.4,6.14076901]
[1745314179072,12.27949878,1628.8,1628.4,6.14076728]
[1745314179277,6.1397165,1628.8,1628.4,6.14076728]
[1745314179880,6.1397165,1628.8,1628.4,6.14074769]
[1745314180256,6.1397165,1628.8,1628.4,12.2815065]
[1745314180457,6.1397165,1628.8,1628.4,6.14073306]
[1745314180672,6.1397165,1628.8,1628.4,12.28149112]
[1745314180850,6.1397165,1628.8,1628.4,6.14073306]
[1745314181751,6.1397165,1628.8,1628.5,3.77055366]
[1745314183052,6.13991852,1628.7,1628.3,6.97026369]
[1745314183247,6.13970259,1628.8,1628.4,9.9112658]
[1745314183459,6.13970259,1628.8,1628.4,16.05199866]
[1745314183980,0.7946,1628.9,1628.6,3.77055366]
[1745314184146,6.93382502,1628.9,1628.6,3.77055366]
[1745314186084,6.93382502,1628.9,1628.6,4.22969883]
[1745314186577,6.13961881,1628.8,1628.6,4.22969883]
[1745314186745,6.13961881,1628.8,1628.6,0.45914517]
[1745314186942,6.13961881,1628.8,1628.4,9.91135339]
[1745314187887,6.13961881,1628.8,1628.5,6.14050877]
[1745314188382,6.93382502,1628.9,1628.5,6.14050877]
[1745314188679,6.93382502,1628.9,1628.5,6.14038136]
[1745314188984,6.93382502,1628.9,1628.5,12.28080313]
[1745314189283,13.07321857,1628.9,1628.5,6.14038136]
[1745314189583,6.93382502,1628.9,1628.5,6.14038136]
[1745314189881,6.13949943,1628.8,1628.5,6.14038136]
[1745314191003,6.13949943,1628.8,1628.5,6.60716209]
[1745314191187,6.93376126,1628.9,1628.5,6.60716209]
[1745314193087,6.93376126,1628.9,1628.6,6.1402419]
[1745314193255,8.06783198,1628.9,1628.5,12.7475493]
[1745314193575,8.06783198,1628.9,1628.5,6.60716209]
[1745314194464,8.06783198,1628.9,1628.5,12.74754037]
[1745314194668,8.06783198,1628.9,1628.5,12.74754724]
[1745314194877,8.06783198,1628.9,1628.5,6.60715901]
[1745314197103,1.92867072,1628.9,1628.6,9.91065333]
[1745314197406,0.7946,1628.9,1628.6,9.91065333]
[1745314197593,6.93373415,1628.9,1628.6,9.91065333]
[1745314198914,6.93373415,1628.9,1628.6,3.77055366]
[1745314200287,0.7946,1628.9,1628.6,9.91058588]
[1745314201214,6.93372628,1628.9,1628.6,3.77055366]
[1745314202109,8.24099136,1628.9,1628.6,3.77055366]
[1745314204320,8.24099136,1628.9,1628.6,9.91076562]
[1745314204507,8.24099136,1628.9,1628.5,10.37769847]
[1745314205216,8.24099136,1628.9,1628.5,16.51808461]
[1745314205422,8.24099136,1628.9,1628.5,10.37769847]
[1745314206425,2.10186508,1628.9,1628.5,0.46678073]
[1745314206610,6.89974315,1628.6,1628.1,6.89310058]
[1745314206938,6.14192658,1628.2,1627.8,9.91368878]
[1745314207088,6.14192658,1628.2,1627.8,9.91380983]
[1745314207289,6.14147754,1628.3,1627.8,9.91360792]
[1745314207623,0.7595,1628.4,1628.1,6.14186285]
[1745314207839,0.7595,1628.4,1628.1,6.60477413]
[1745314208198,6.90053455,1628.4,1628.1,0.46291128]
[1745314208401,6.14156499,1628.3,1628.0,0.7512]
[1745314208595,6.14156499,1628.3,1627.8,10.66479322]
[1745314208796,6.14156499,1628.3,1627.9,6.14267448]
[1745314210994,6.14156499,1628.3,1627.8,10.66479322]
[1745314211193,6.14156499,1628.3,1627.9,6.1427687]
[1745314211529,6.14156499,1628.3,1627.9,6.60154027]
[1745314211899,6.9006556,1628.4,1628.0,3.77055366]
[1745314212099,6.1411556,1628.4,1628.0,9.91280604]
[1745314212326,6.1411556,1628.4,1628.0,16.05506964]
[1745314212829,6.1411556,1628.4,1628.0,9.91280604]
[1745314213735,6.14143822,1628.3,1628.0,3.77055366]
[1745314214034,6.1411556,1628.4,1628.0,9.91305709]
[1745314214406,12.98298513,1628.6,1628.2,3.77055366]
[1745314214601,6.14080814,1628.5,1628.2,3.77055366]
[1745314215916,6.90298513,1628.6,1628.2,3.77055366]
[1745314216138,6.90298513,1628.6,1628.2,9.91210824]
[1745314216539,13.0435203,1628.6,1628.2,9.91210824]
[1745314216941,13.04355581,1628.6,1628.2,9.91210824]
[1745314217237,6.14066684,1628.5,1628.2,3.77055366]
[1745314217748,2.06705558,1628.6,1628.1,0.7785]
[1745314217903,6.14150665,1628.3,1628.0,3.77055366]
[1745314218100,6.90422191,1628.3,1628.0,3.77055366]
[1745314218302,6.1418793,1628.2,1628.0,3.77055366]
[1745314218521,6.1418793,1628.2,1627.9,1.24891212]
[1745314218522,6.1418793,1628.2,1627.9,0.47041212]
[1745314218719,6.1418793,1628.2,1627.8,15.71870311]
[1745314218933,6.1418793,1628.2,1627.8,15.71877632]
[1745314220212,6.14238327,1628.1,1627.7,4.54905366]
[1745314220533,6.90422128,1628.3,1627.9,9.91332281]
[1745314221538,6.14179562,1628.2,1627.9,3.77055366]
[1745314221722,6.14179562,1628.2,1627.9,4.23567457]
[1745314221926,0.7627,1628.3,1627.9,4.23567457]
[1745314221927,6.90421993,1628.3,1627.9,4.23567457]
[1745314222102,6.14179406,1628.2,1627.9,4.23567457]
[1745314222942,13.04596033,1628.3,1627.9,10.37855705]
[1745314223117,6.90421993,1628.3,1627.9,10.37855705]
[1745314223318,13.04586641,1628.3,1627.9,10.37855705]
[1745314223519,6.90421993,1628.3,1627.9,10.37855705]
[1745314223718,13.04586493,1628.3,1627.9,10.37855705]
[1745314223919,13.04591838,1628.3,1627.9,10.37855705]
[1745314224236,19.1245002,1628.5,1628.1,9.91254136]
[1745314224428,12.98358978,1628.5,1628.1,9.91254136]
[1745314224629,6.14100823,1628.4,1628.1,3.77055366]
[1745314227046,12.98354907,1628.5,1628.1,10.52586976]
[1745314227251,19.12444206,1628.5,1628.1,9.91266976]
[1745314227549,6.14100353,1628.4,1628.1,3.77055366]
[1745314228346,19.12445483,1628.5,1628.1,9.91267184]
[1745314228645,12.98354907,1628.5,1628.1,9.91267184]
[1745314228850,6.14100802,1628.4,1628.1,3.77055366]
[1745314230557,6.14101202,1628.4,1628.1,3.77055366]
[1745314232252,6.90351415,1628.5,1628.1,9.91263745]
[1745314232454,13.04447138,1628.5,1628.1,9.91263745]
[1745314232753,6.90351415,1628.5,1628.1,3.77055366]
[1745314232957,6.14100831,1628.4,1628.1,3.77055366]
[1745314233925,12.28227745,1628.4,1628.1,3.77055366]
[1745314234117,6.14100831,1628.4,1628.1,3.77055366]
[1745314236028,13.36467276,1628.5,1628.1,9.91268061]
[1745314236227,6.14104541,1628.4,1628.1,3.77055366]
[1745314237150,6.14150311,1628.3,1628.1,3.77055366]
[1745314237549,6.14212886,1628.1,1628.0,0.7785]
[1745314237739,6.14212886,1628.1,1627.9,0.46512091]
[1745314237937,6.14265529,1628.0,1627.8,0.7909]
[1745314238570,6.14262341,1628.0,1627.8,0.7909]
[1745314238862,6.14262341,1628.0,1627.7,3.77055366]
[1745314239062,6.14355451,1627.8,1627.6,0.7909]
[1745314239263,6.14439324,1627.5,1627.2,4.56145366]
[1745314239426,6.1441762,1627.6,1627.2,10.70695906]
[1745314239839,6.14386532,1627.7,1627.2,16.85224378]
[1745314240042,6.90057649,1628.0,1627.6,9.91455556]
[1745314240262,6.14267649,1628.0,1627.6,9.91455556]
[1745314241174,6.14267649,1628.0,1627.8,3.77055366]
[1745314241387,6.14267649,1628.0,1627.8,4.53575366]
[1745314242073,6.14288346,1627.9,1627.7,0.46991742]
[1745314242234,6.14276772,1628.0,1627.6,10.67970973]
[1745314242686,12.2855621,1628.0,1627.6,10.67970973]
[1745314243366,6.14288528,1627.9,1627.6,10.67970973]
[1745314243662,6.14276772,1628.0,1627.6,4.53575366]
[1745314243884,0.61427677,1628.0,1627.6,4.53575366]
[1745314244167,6.14345493,1627.8,1627.6,4.53575366]
[1745314244769,6.14345493,1627.8,1627.4,16.34727155]
[1745314244970,6.14345493,1627.8,1627.4,10.68050597]
[1745314245264,6.14416794,1627.6,1627.4,4.98842041]
[1745314245463,6.14334505,1627.8,1627.4,4.98842041]
[1745314245765,6.14334505,1627.8,1627.4,17.33905159]
[1745314245969,6.14334505,1627.8,1627.4,11.13299902]
[1745314246164,6.14388794,1627.7,1627.4,5.04986125]
[1745314246334,6.14388794,1627.7,1627.4,4.98842041]
[1745314246664,6.14388794,1627.7,1627.4,0.45266675]
[1745314246665,6.1442403,1627.6,1627.4,0.45266675]
[1745314246870,6.1442403,1627.6,1627.3,3.77055366]
[1745314248944,7.37254005,1627.7,1627.3,9.91569635]
[1745314249252,6.14330526,1627.8,1627.5,4.53575366]
[1745314249451,0.7579,1627.9,1627.5,10.68008732]
[1745314249452,6.90093907,1627.9,1627.5,10.68008732]
[1745314250066,13.04411121,1627.9,1627.5,10.68008732]
[1745314250377,6.90093907,1627.9,1627.5,4.53575366]
[1745314250545,13.04413308,1627.9,1627.5,10.67998757]
[1745314250744,6.90093907,1627.9,1627.5,10.67991185]
[1745314251149,6.14303907,1627.9,1627.5,10.67991185]
[1745314251365,12.28541904,1628.0,1627.6,6.14396975]
[1745314251567,6.14289013,1627.9,1627.5,10.67991185]
[1745314251755,6.14289013,1627.9,1627.5,16.82409712]
[1745314252274,6.14263906,1628.0,1627.7,3.77055366]
[1745314252473,7.2309561,1628.1,1627.7,9.91418264]
[1745314252676,6.14253245,1628.0,1627.7,3.77055366]
[1745314252979,13.37341997,1628.1,1627.7,9.91415239]
[1745314253175,6.14253722,1628.0,1627.7,3.77055366]
[1745314253374,6.47309256,1628.1,1627.7,3.77055366]
[1745314253586,6.47309256,1628.1,1627.8,0.7652]
[1745314253877,0.33076581,1628.1,1627.8,0.7652]
[1745314254075,6.47297893,1628.1,1627.8,0.7652]
[1745314254239,6.14252453,1628.0,1627.8,0.7652]
[1745314254444,6.47297893,1628.1,1627.8,0.7652]
[1745314254844,0.33076581,1628.1,1628.0,6.14250614]
[1745314255063,0.010411,1628.1,1628.0,12.57760614]
[1745314255263,0.010411,1628.1,1628.0,12.63902063]
[1745314255650,0.010411,1628.1,1628.0,12.57760614]
[1745314256463,0.010411,1628.1,1628.0,12.63902062]
[1745314257090,0.010411,1628.1,1628.0,13.03132035]
[1745314262394,0.010411,1628.1,1628.0,1.22081421]
[1745314262695,0.010411,1628.1,1628.0,0.45371421]
[1745314262886,0.010411,1628.1,1627.9,6.14268185]
[1745314263082,0.010411,1628.1,1627.8,0.7888]
[1745314263385,0.010411,1628.1,1627.8,10.70259877]
[1745314263895,0.010411,1628.1,1627.9,6.14285369]
[1745314264098,0.010411,1628.1,1627.9,6.59273957]
[1745314264273,0.010411,1628.1,1627.9,0.44988588]
[1745314264480,0.010411,1628.1,1627.8,10.70259877]
[1745314264766,0.010411,1628.1,1627.8,16.84560589]
[1745314264968,0.010411,1628.1,1627.9,6.1428785]
[1745314265171,0.010411,1628.1,1627.9,6.14262934]
[1745314265991,0.010411,1628.1,1627.9,12.28529567]
[1745314266195,0.010411,1628.1,1628.0,9.9130598]
[1745314266401,0.010411,1628.1,1628.0,3.77055366]
[1745314267502,0.010411,1628.1,1628.0,9.97447879]
[1745314267793,0.010411,1628.1,1628.0,3.77055366]
[1745314268562,0.010411,1628.1,1627.9,0.46643782]
[1745314268794,0.010411,1628.1,1627.8,10.70237014]
[1745314269096,0.010411,1628.1,1627.9,6.14279205]
[1745314269287,0.010411,1628.1,1627.8,10.70237014]
[1745314269596,0.010411,1628.1,1627.8,16.84545172]
[1745314269777,0.010411,1628.1,1627.9,6.14281617]
[1745314271906,0.010411,1628.1,1627.8,10.70237014]
[1745314272075,0.010411,1628.1,1627.8,10.70235626]
[1745314272606,0.010411,1628.1,1627.8,16.8453614]
[1745314273406,0.010411,1628.1,1627.9,6.14282094]
[1745314274307,0.010411,1628.1,1627.9,12.28545553]
[1745314274496,0.010411,1628.1,1627.9,6.20405949]
[1745314274678,0.010411,1628.1,1627.9,6.20405836]
[1745314275202,0.010411,1628.1,1627.9,12.28528348]
[1745314275901,0.010411,1628.1,1627.9,12.73988469]
[1745314276113,0.010411,1628.1,1628.0,6.14250614]
[1745314276409,0.010411,1628.1,1627.9,0.45460121]
[1745314276608,0.010411,1628.1,1627.9,6.1427407]
[1745314277104,6.90302334,1628.1,1627.8,6.14324718]
[1745314277714,6.14277111,1628.0,1627.6,10.72973235]
[1745314277878,0.7504,1627.8,1627.5,5.63]
[1745314278078,6.89370538,1627.8,1627.5,11.77417669]
[1745314279817,6.89370538,1627.8,1627.4,9.9150651]
[1745314280112,6.14365115,1627.7,1627.4,9.9150651]
[1745314280417,6.89370538,1627.8,1627.4,9.9153095]
[1745314280418,6.89384323,1627.8,1627.4,9.9153095]
[1745314280713,13.0373966,1627.8,1627.4,9.9153095]
[1745314280881,6.89384323,1627.8,1627.4,3.77055366]
[1745314281081,6.14377306,1627.7,1627.4,3.77055366]
[1745314281883,6.14377306,1627.7,1627.4,4.22662727]
[1745314283318,6.14377306,1627.7,1627.4,0.45607361]
[1745314283319,6.89479324,1627.5,1627.4,0.45607361]
[1745314283491,6.89479324,1627.5,1627.0,16.36296789]
[1745314283492,6.14510401,1627.4,1627.0,16.36296789]
[1745314283689,6.14572741,1627.2,1626.9,5.631]
[1745314284001,6.1461074,1627.1,1626.7,9.91778836]
[1745314284311,6.14632858,1627.0,1626.7,3.77055366]
[1745314284823,6.89610293,1627.2,1626.8,6.14701915]
[1745314285019,13.04193312,1627.2,1626.8,6.14701915]
[1745314285326,6.14649732,1627.0,1626.7,3.77055366]
[1745314285697,6.14649732,1627.0,1626.7,4.23472078]
[1745314286408,6.14610012,1627.1,1626.7,4.54352392]
[1745314286724,6.14610012,1627.1,1626.7,10.69080089]
[1745314286928,6.14612943,1627.1,1626.7,4.23472078]
[1745314287089,6.14643445,1627.0,1626.7,4.23472078]
[1745314287292,12.29302667,1627.0,1626.7,4.23472078]
[1745314287724,6.14643445,1627.0,1626.7,4.23472078]
[1745314288304,6.90783445,1627.0,1626.7,4.23472078]
[1745314288925,0.7614,1627.2,1626.9,9.91715851]
[1745314289328,13.05290913,1627.2,1626.8,9.91734142]
[1745314289493,6.90707983,1627.2,1626.8,9.91734142]
[1745314290326,13.05287939,1627.2,1626.8,9.91734142]
[1745314290728,6.14593746,1627.1,1626.8,3.77055366]
[1745314291521,6.90707239,1627.2,1626.8,9.9788089]
[1745314291701,6.90707239,1627.2,1626.8,9.91734569]
[1745314292029,6.14590637,1627.1,1626.8,9.91734569]
[1745314292741,6.14590637,1627.1,1626.8,3.77055366]
[1745314293331,6.1463032,1627.0,1626.8,3.77055366]
[1745314293641,6.14741501,1626.7,1626.6,0.3969448]
[1745314293816,6.90881501,1626.7,1626.6,0.3969448]
[1745314294419,0.7614,1626.7,1626.6,0.3969448]
[1745314294927,12.29441747,1626.8,1626.6,0.3969448]
[1745314295136,13.05581747,1626.8,1626.6,0.3969448]
[1745314295305,6.14741501,1626.7,1626.6,0.3969448]
[1745314296037,7.45300022,1626.7,1626.6,0.3969448]
[1745314296540,6.14741501,1626.7,1626.6,0.3969448]
[1745314296902,6.90843712,1626.8,1626.6,0.3969448]
[1745314297535,6.14741501,1626.7,1626.6,0.3969448]
[1745314300737,6.90351501,1626.7,1626.6,0.3969448]
[1745314308358,10.67406867,1626.7,1626.6,0.3969448]
[1745314308699,6.14940745,1626.2,1625.9,3.77055366]
[1745314308843,6.14940745,1626.2,1625.9,10.7090617]
[1745314309236,6.14967581,1626.2,1625.9,4.55875366]
[1745314309437,12.29935162,1626.2,1625.9,5.02176608]
[1745314309675,6.14967581,1626.2,1625.9,5.02176608]
[1745314310374,12.29934766,1626.2,1625.9,5.02176608]
[1745314310549,6.1496029,1626.2,1625.9,5.02176608]
[1745314310749,6.14973544,1626.1,1625.9,5.02176608]